bitfinex/quotes_BTCUSD_20251217
["timestamp","ask_amount","ask_price","bid_price","bid_amount"]
[1765994015503,0.70605,86631.0,86616.0,0.01154521]
[1765994015739,0.33273,86629.0,86616.0,0.01154521]
[1765994015953,0.33273,86629.0,86610.0,0.01154601]
[1765994015954,0.70674867,86628.0,86610.0,0.01154601]
[1765994016169,0.001,86632.0,86597.0,0.0907]
[1765994016170,0.70605,86615.0,86597.0,0.0907]
[1765994016365,0.70605,86615.0,86570.0,0.00099999]
[1765994016366,0.70605,86601.0,86581.0,0.01154987]
[1765994016545,0.70605,86599.0,86583.0,0.23099182]
[1765994016757,0.70605,86597.0,86583.0,1.82e-06]
[1765994016961,0.71759787,86596.0,86583.0,1.82e-06]
[1765994017167,0.01154881,86589.0,86583.0,1.82e-06]
[1765994017343,0.0184,86592.0,86575.0,0.01155067]
[1765994017524,0.70605,86587.0,86573.0,0.01155094]
[1765994017732,0.70605,86585.0,86573.0,0.01155094]
[1765994017935,0.70605,86585.0,86576.0,0.01155054]
[1765994018136,0.70605,86585.0,86575.0,0.01155067]
[1765994018335,0.0184,86592.0,86562.0,4.11e-06]
[1765994018336,0.70605,86573.0,86562.0,4.11e-06]
[1765994018561,0.01844157,86580.0,86562.0,4.11e-06]
[1765994018562,0.70605,86571.0,86562.0,4.11e-06]
[1765994018762,0.70605,86571.0,86557.0,1.6e-07]
[1765994018926,0.70605,86571.0,86557.0,0.01155324]
[1765994019278,0.0184,86572.0,86559.0,0.01155281]
[1765994019480,0.0184,86572.0,86557.0,0.01155324]
[1765994019481,0.70605,86571.0,86557.0,0.01155324]
[1765994019635,0.70605,86571.0,86557.0,0.2426128]
[1765994019838,0.70605,86571.0,86558.0,0.01155294]
[1765994020242,0.70605,86571.0,86559.0,0.01155281]
[1765994020468,0.70605,86571.0,86558.0,0.01155294]
[1765994020659,0.70705,86571.0,86557.0,0.01155324]
[1765994020860,0.70605,86571.0,86557.0,0.01155324]
[1765994021083,0.70605,86571.0,86558.0,0.01155294]
[1765994021248,0.70605,86571.0,86557.0,1.6e-07]
[1765994021249,0.70705,86571.0,86557.0,0.24261417]
[1765994021445,0.70605,86571.0,86558.0,0.01155294]
[1765994021761,0.70605,86571.0,86557.0,1.6e-07]
[1765994021762,0.2326379,86571.0,86557.0,1.6e-07]
[1765994021986,0.34428187,86566.0,86557.0,1.6e-07]
[1765994022183,0.74109,86563.0,86557.0,1.6e-07]
[1765994022392,0.74109,86561.0,86557.0,1.6e-07]
[1765994022591,0.74109,86559.0,86557.0,1.6e-07]
[1765994022799,0.9721046,86575.0,86557.0,1.6e-07]
[1765994022998,0.75949,86565.0,86554.0,4.52e-06]
[1765994023378,0.0184,86565.0,86554.0,0.011558]
[1765994023591,0.0184,86565.0,86554.0,0.24262693]
[1765994023764,0.75949,86565.0,86555.0,0.01155334]
[1765994023970,0.75949,86565.0,86556.0,0.01155321]
[1765994024170,0.75949,86565.0,86554.0,4.52e-06]
[1765994024604,0.74109,86563.0,86554.0,4.52e-06]
[1765994025080,0.74109,86563.0,86555.0,0.01155334]
[1765994025279,0.001,86565.0,86561.0,0.24260288]
[1765994025484,0.001,86565.0,86556.0,0.01155321]
[1765994025672,0.001,86565.0,86555.0,0.01155334]
[1765994025848,0.0184,86566.0,86554.0,4.52e-06]
[1765994026251,0.74109,86565.0,86554.0,0.24262696]
[1765994026456,0.33273,86562.0,86546.0,0.01155454]
[1765994026654,0.71088198,86564.0,86542.0,0.01844157]
[1765994026655,0.74109,86560.0,86542.0,0.01844157]
[1765994026858,0.74109,86558.0,86545.0,0.01155468]
[1765994027312,0.01155334,86555.0,86542.0,0.01844157]
[1765994027470,0.74109,86553.0,86542.0,0.23110166]
[1765994027642,0.74109,86553.0,86541.0,0.01155521]
[1765994028043,0.74109,86553.0,86543.0,0.01155494]
[1765994028484,0.74109,86553.0,86544.0,0.01155481]
[1765994028692,0.74109,86553.0,86543.0,0.01155494]
[1765994028871,0.74109,86553.0,86544.0,0.01155481]
[1765994029083,0.74109,86553.0,86546.0,0.01155454]
[1765994029319,0.74109,86553.0,86540.0,0.24266235]
[1765994029514,0.74109,86553.0,86543.0,0.01155494]
[1765994029898,0.74109,86553.0,86541.0,0.2426585]
[1765994030097,0.74109,86553.0,86542.0,0.01155508]
[1765994030412,0.74109,86553.0,86541.0,0.01155521]
[1765994030845,0.74109,86553.0,86542.0,0.24265627]
[1765994031043,0.74109,86553.0,86543.0,0.01155494]
[1765994031235,0.74109,86553.0,86545.0,0.01155468]
[1765994031454,0.74109,86553.0,86544.0,0.01155481]
[1765994031689,0.74109,86553.0,86543.0,0.01155494]
[1765994031690,0.74109,86552.0,86539.0,0.0002]
[1765994031855,0.74109,86548.0,86539.0,0.0002]
[1765994032061,0.74109,86548.0,86530.0,0.0002]
[1765994032231,0.74109,86543.0,86533.0,0.01155628]
[1765994032442,0.75949,86543.0,86530.0,0.0002]
[1765994032648,0.31978,86539.0,86527.0,0.0002]
[1765994032853,0.31958,86538.0,86525.0,0.01155735]
[1765994033034,0.31958,86538.0,86523.0,0.01155762]
[1765994033035,0.74109,86537.0,86523.0,0.24270852]
[1765994033232,0.0184,86543.0,86536.0,0.00057247]
[1765994033483,0.74109,86542.0,86534.0,0.01155615]
[1765994033725,0.74109,86542.0,86530.0,0.01155668]
[1765994033872,0.74109,86541.0,86530.0,0.01155668]
[1765994034051,0.74109,86541.0,86531.0,0.23113085]
[1765994034253,0.0184,86540.0,86531.0,0.23113085]
[1765994034460,0.75949,86540.0,86527.0,0.01155708]
[1765994034671,0.74109,86539.0,86528.0,0.24269532]
[1765994034877,0.74109,86539.0,86527.0,0.01155708]
[1765994035103,0.74109,86539.0,86521.0,0.68831788]
[1765994035309,0.71088198,86531.0,86517.0,0.50053]
[1765994035555,0.74109,86528.0,86517.0,0.01155842]
[1765994035719,0.74109,86528.0,86521.0,0.01155788]
[1765994035889,0.74109,86528.0,86522.0,2.58e-06]
[1765994036089,0.0184,86529.0,86525.0,0.23114665]
[1765994036376,0.0184,86529.0,86526.0,0.01155721]
[1765994036632,0.0184,86529.0,86523.0,0.01155762]
[1765994036796,0.0184,86529.0,86524.0,0.01155748]
[1765994037014,0.74109,86545.0,86531.0,0.01155655]
[1765994037373,0.0184,86544.0,86536.0,0.23111519]
[1765994037581,0.75949,86544.0,86534.0,0.23112298]
[1765994037784,0.75949,86544.0,86537.0,0.01155575]
[1765994038029,0.74109,86556.0,86537.0,0.01386752]
[1765994038203,0.0184,86555.0,86539.0,0.01155548]
[1765994038397,0.74109,86554.0,86541.0,0.01155521]
[1765994038575,0.74109,86554.0,86539.0,0.01155548]
[1765994038783,0.74109,86554.0,86541.0,0.01155521]
[1765994038976,0.74109,86554.0,86542.0,0.01155508]
[1765994039234,1.0,86553.0,86543.0,0.01155494]
[1765994039428,0.05536287,86558.0,86549.0,0.01155414]
[1765994039429,0.00161287,86558.0,86549.0,0.01155414]
[1765994039568,0.0907,86556.0,86553.0,0.01155361]
[1765994039767,0.001,86554.0,86550.0,0.01155401]
[1765994040266,0.0907,86556.0,86550.0,0.01155401]
[1765994040469,0.001,86553.0,86551.0,0.01155388]
[1765994040668,0.001,86553.0,86548.0,0.2310851]
[1765994040871,0.001,86553.0,86548.0,0.01155428]
[1765994041071,0.001,86553.0,86547.0,0.24264265]
[1765994041276,0.001,86553.0,86547.0,0.01155441]
[1765994041682,0.0184,86556.0,86539.0,0.01155548]
[1765994041879,0.74109,86548.0,86537.0,6.2e-07]
[1765994042082,1.0,86547.0,86531.0,0.23112998]
[1765994042300,1.0,86545.0,86527.0,0.01844157]
[1765994042666,1.0,86545.0,86538.0,0.2311103]
[1765994042868,1.0,86545.0,86542.0,0.01155508]
[1765994043103,1.0,86545.0,86542.0,0.24265649]
[1765994043282,0.0184,86544.0,86539.0,0.01155548]
[1765994043495,0.001,86547.0,86540.0,0.51208535]
[1765994043698,0.0184,86544.0,86539.0,0.01155548]
[1765994044227,1.0,86543.0,86516.0,0.67676]
[1765994044459,0.0184,86544.0,86533.0,0.23112481]
[1765994044460,0.51231,86540.0,86533.0,0.23112481]
[1765994044625,0.51231,86540.0,86532.0,0.01155641]
[1765994044626,1.0,86539.0,86535.0,0.01155601]
[1765994044821,1.0,86539.0,86535.0,0.24267633]
[1765994045025,1.0,86539.0,86538.0,0.00050885]
[1765994045451,0.00161287,86544.0,86539.0,0.23110714]
[1765994045656,0.51231,86549.0,86539.0,0.23110714]
[1765994045657,1.0,86548.0,86539.0,0.24266271]
[1765994045857,0.0184,86544.0,86540.0,0.01155535]
[1765994046096,0.0184,86544.0,86540.0,0.24266175]
[1765994046303,0.0184,86544.0,86542.0,0.23110164]
[1765994046474,0.0184,86544.0,86540.0,0.01155535]
[1765994046681,0.0184,86544.0,86539.0,0.01155548]
[1765994046856,0.0184,86544.0,86538.0,0.23111074]
[1765994047026,0.0184,86544.0,86541.0,0.01155521]
[1765994047224,0.0184,86544.0,86540.0,0.01155535]
[1765994047647,0.0184,86544.0,86537.0,0.24266812]
[1765994047845,0.0184,86544.0,86537.0,0.01155575]
[1765994048046,1.0,86543.0,86526.0,0.23114192]
[1765994048407,1.0,86542.0,86528.0,0.01155695]
[1765994048598,1.0,86542.0,86531.0,0.01155655]
[1765994048757,1.48943,86542.0,86527.0,0.01155708]
[1765994048961,1.0,86540.0,86530.0,0.01155668]
[1765994049463,1.0,86540.0,86529.0,0.01155681]
[1765994049669,0.48943,86559.0,86538.0,0.01155561]
[1765994049871,0.0907,86551.0,86536.0,0.01155588]
[1765994050080,1.0,86548.0,86538.0,0.01155561]
[1765994050389,1.0,86548.0,86540.0,0.01155535]
[1765994050624,1.0,86548.0,86537.0,0.01155575]
[1765994050812,1.0,86548.0,86533.0,0.24268098]
[1765994051022,1.48943,86546.0,86532.0,0.01155641]
[1765994051178,1.0,86545.0,86534.0,0.01155615]
[1765994051520,1.0,86545.0,86538.0,0.24266638]
[1765994051820,1.0,86546.0,86532.0,0.01155641]
[1765994052041,0.0184,86547.0,86523.0,0.50751]
[1765994052042,1.0,86544.0,86536.0,0.24267277]
[1765994052246,1.0,86544.0,86535.0,0.24267128]
[1765994052385,1.0,86544.0,86535.0,0.01155601]
[1765994052587,1.0,86544.0,86537.0,0.01155575]
[1765994052787,1.0,86544.0,86534.0,0.01155615]
[1765994052988,1.0,86544.0,86532.0,0.001]
[1765994053231,1.0,86544.0,86452.0,0.20556754]
[1765994053232,0.23113071,86532.0,86522.0,2.58e-06]
[1765994053432,0.01155735,86525.0,86522.0,2.58e-06]
[1765994053636,0.23115241,86523.0,86522.0,2.58e-06]
[1765994053892,0.23115241,86523.0,86499.0,0.01156082]
[1765994053893,1.0,86518.0,86506.0,2.58e-06]
[1765994054099,1.0,86516.0,86506.0,2.58e-06]
[1765994054266,0.48883,86515.0,86506.0,2.58e-06]
[1765994054893,0.48883,86515.0,86506.0,0.23119844]
[1765994055105,0.48883,86515.0,86506.0,2.58e-06]
[1765994055317,0.0184,86517.0,86506.0,2.58e-06]
[1765994055318,0.48883,86508.0,86506.0,2.58e-06]
[1765994055556,1.23119365,86508.0,86506.0,2.58e-06]
[1765994055768,0.0184,86508.0,86506.0,0.00100258]
[1765994055979,0.48883,86507.0,86506.0,2.58e-06]
[1765994056204,0.48883,86507.0,86506.0,0.00100258]
[1765994057564,0.48883,86507.0,86506.0,2.58e-06]
[1765994057976,0.48883,86507.0,86506.0,0.00152966]
[1765994058429,0.48983,86507.0,86506.0,0.00152966]
[1765994058629,0.48983,86507.0,86480.0,0.98948553]
[1765994058630,1.0,86499.0,86483.0,0.23125775]
[1765994058842,0.45298,86496.0,86484.0,0.01156283]
[1765994059051,0.45298,86496.0,86485.0,0.01156269]
[1765994059277,0.45298,86496.0,86484.0,0.01156283]
[1765994059517,0.45298,86496.0,86495.0,0.0003501]
[1765994060558,0.45298,86496.0,86495.0,1e-07]
[1765994060783,0.45459287,86496.0,86495.0,1e-07]
[1765994061405,0.00161287,86496.0,86495.0,0.0010001]
[1765994061659,0.00161287,86496.0,86495.0,1e-07]
[1765994062027,0.45424287,86496.0,86495.0,1e-07]
[1765994062658,0.01156136,86495.0,86475.0,0.01156403]
[1765994062969,1.01156136,86495.0,86475.0,0.01156403]
[1765994063175,0.43422,86492.0,86480.0,0.01156336]
[1765994063350,1.0,86489.0,86482.0,0.01156309]
[1765994063555,1.0,86495.0,86484.0,0.23125664]
[1765994063764,1.0,86495.0,86482.0,0.01156309]
[1765994063930,1.0,86493.0,86485.0,0.01156269]
[1765994064124,1.0,86493.0,86485.0,0.24281589]
[1765994064531,1.0,86493.0,86486.0,0.24281364]
[1765994064732,0.45262,86492.0,86488.0,0.01156229]
[1765994064970,1.0,86491.0,86487.0,0.01156243]
[1765994065181,1.0,86491.0,86487.0,0.24281089]
[1765994065523,1.0,86491.0,86488.0,0.01156229]
[1765994065656,1.0,86491.0,86489.0,0.23124236]
[1765994065860,0.00161287,86496.0,86491.0,0.01156189]
[1765994066063,0.00161287,86496.0,86492.0,0.24279682]
[1765994066265,0.0907,86506.0,86499.0,0.01156082]
[1765994066588,1.0,86507.0,86497.0,0.2427812]
[1765994066755,1.0,86507.0,86495.0,0.01156136]
[1765994067160,1.0,86507.0,86496.0,0.01156122]
[1765994067371,1.0,86508.0,86505.0,0.01156002]
[1765994067584,0.02973828,86522.0,86504.0,0.01387219]
[1765994067796,0.03080723,86556.0,86481.0,0.0907]
[1765994067797,0.70875,86527.0,86515.0,0.01155868]
[1765994067996,1.0,86524.0,86514.0,0.01155882]
[1765994068146,1.0,86524.0,86518.0,2.8e-06]
[1765994068334,0.70875,86523.0,86519.0,0.01155815]
[1765994068532,0.70875,86523.0,86518.0,0.23116679]
[1765994068743,0.70875,86523.0,86518.0,2.8e-06]
[1765994068944,0.70875,86523.0,86519.0,0.01155815]
[1765994069142,0.70875,86523.0,86518.0,2.8e-06]
[1765994069780,0.05001839,86545.0,86524.0,0.01155748]
[1765994069982,0.01155454,86546.0,86531.0,0.01155655]
[1765994069983,1.0,86538.0,86531.0,0.01155655]
[1765994070153,0.00188558,86539.0,86533.0,0.01155628]
[1765994070359,0.00188558,86539.0,86532.0,0.24268363]
[1765994070614,0.00188558,86539.0,86534.0,0.24267777]
[1765994070775,0.00188558,86539.0,86533.0,0.01155628]
[1765994070990,0.00188558,86539.0,86534.0,0.24267823]
[1765994071186,0.00188558,86539.0,86534.0,0.01155615]
[1765994071389,0.00188558,86539.0,86532.0,0.24268476]
[1765994071588,0.00188558,86539.0,86533.0,0.24268177]
[1765994071795,0.70875,86538.0,86534.0,0.001]
[1765994073390,0.70875,86538.0,86534.0,0.01155615]
[1765994073613,0.70875,86538.0,86531.0,0.01155655]
[1765994073818,0.70875,86538.0,86528.0,0.01155695]
[1765994074017,0.70875,86533.0,86524.0,0.01155748]
[1765994074216,0.70875,86531.0,86519.0,0.01155815]
[1765994074438,1.0,86528.0,86505.0,0.50751]
[1765994074649,1.0,86525.0,86508.0,0.0184]
[1765994074857,0.70875,86522.0,86515.0,0.01155868]
[1765994075067,1.0,86521.0,86515.0,0.01155868]
[1765994075275,1.0,86520.0,86514.0,0.01155882]
[1765994075476,1.0,86520.0,86486.0,0.46250152]
[1765994075477,1.0,86518.0,86498.0,0.73982]
[1765994075652,1.0,86519.0,86517.0,0.23116765]
[1765994075853,1.0,86519.0,86516.0,0.01155855]
[1765994076109,1.0,86519.0,86518.0,0.23116576]
[1765994076250,1.0,86519.0,86496.0,0.73982]
[1765994076251,1.0,86518.0,86496.0,0.73982]
[1765994076452,1.0,86518.0,86473.0,0.0002]
[1765994076453,1.0,86513.0,86497.0,0.24278278]
[1765994076689,0.70875,86510.0,86497.0,1.09e-06]
[1765994076893,1.0,86507.0,86497.0,1.09e-06]
[1765994077093,1.0,86507.0,86487.0,0.00025466]
[1765994077094,0.70875,86504.0,86487.0,0.00025466]
[1765994077294,0.70875,86499.0,86487.0,0.00025466]
[1765994077495,1.0,86498.0,86487.0,0.00025466]
[1765994077693,0.00161287,86499.0,86487.0,0.00025466]
[1765994077694,1.70875,86496.0,86487.0,0.00025466]
[1765994077899,0.00161287,86499.0,86487.0,0.01181709]
[1765994077900,1.0,86494.0,86487.0,0.01181709]
[1765994078272,1.0,86494.0,86488.0,0.01156229]
[1765994078470,1.0,86494.0,86487.0,0.01181709]
[1765994078881,1.0,86494.0,86487.0,0.00025466]
[1765994079076,1.0,86494.0,86489.0,0.01156216]
[1765994079312,1.0,86494.0,86488.0,0.24280755]
[1765994079512,1.0,86494.0,86490.0,0.23124044]
[1765994079711,1.0,86494.0,86489.0,0.24280499]
[1765994079923,1.0,86494.0,86490.0,0.01156203]
[1765994080130,1.0,86494.0,86487.0,0.01181709]
[1765994080330,0.70875,86493.0,86487.0,4.66e-06]
[1765994080477,1.0,86490.0,86487.0,4.66e-06]
[1765994080672,0.7283,86489.0,86487.0,4.66e-06]
[1765994083194,1.0,86488.0,86487.0,4.66e-06]
[1765994083432,2.05024595,86488.0,86487.0,4.66e-06]
[1765994084484,0.0115635,86479.0,86463.0,0.0001]
[1765994084687,0.0115635,86479.0,86460.0,0.01156604]
[1765994084688,0.7283,86477.0,86462.0,0.01156577]
[1765994084891,0.7283,86477.0,86463.0,0.01156564]
[1765994085075,0.7283,86475.0,86463.0,0.2313119]
[1765994085429,0.7283,86475.0,86467.0,0.23129993]
[1765994085586,0.7283,86475.0,86457.0,0.50449]
[1765994085587,0.7283,86475.0,86462.0,0.01156577]
[1765994085794,0.7283,86475.0,86461.0,0.24288314]
[1765994086031,0.7283,86475.0,86462.0,0.01156577]
[1765994086212,0.7283,86475.0,86461.0,0.24288314]
[1765994086408,0.7283,86475.0,86465.0,0.01156537]
[1765994086612,0.7283,86475.0,86467.0,0.0115651]
[1765994086810,0.7283,86475.0,86466.0,0.24287002]
[1765994087010,0.7283,86475.0,86466.0,0.01156523]
[1765994087233,0.7283,86475.0,86463.0,0.01156564]
[1765994087234,0.7283,86475.0,86463.0,0.24287742]
[1765994087441,0.7283,86475.0,86461.0,0.001]
[1765994087676,0.7283,86471.0,86456.0,0.0184]
[1765994088100,0.7283,86469.0,86452.0,0.01156711]
[1765994088310,0.7283,86469.0,86454.0,0.23133574]
[1765994088748,0.7283,86469.0,86455.0,0.01156671]
[1765994089157,0.7283,86469.0,86451.0,0.01156724]
[1765994089359,0.01156497,86468.0,86448.0,0.01156764]
[1765994089671,0.7283,86467.0,86450.0,0.2429148]
[1765994089907,0.7398651,86467.0,86450.0,0.01156737]
[1765994090124,0.7283,86467.0,86466.0,0.00066868]
[1765994091070,0.0907,86478.0,86466.0,0.00066868]
[1765994091240,0.01156296,86483.0,86456.0,0.50449]
[1765994091241,0.0907,86472.0,86456.0,0.50449]
[1765994091417,1.0,86471.0,86466.0,0.001]
[1765994091616,1.0,86471.0,86467.0,0.0115651]
[1765994091817,0.0907,86471.0,86470.0,0.00054129]
[1765994092607,0.819,86471.0,86470.0,0.00054129]
[1765994093389,0.819,86471.0,86470.0,0.00154129]
[1765994093695,0.819,86471.0,86470.0,1.29e-06]
[1765994093917,2.05029141,86471.0,86470.0,1.29e-06]
[1765994094115,0.23132432,86459.0,86444.0,0.0002]
[1765994094317,0.7283,86459.0,86445.0,0.01156804]
[1765994094517,0.7283,86459.0,86447.0,0.01156778]
[1765994094734,0.7283,86459.0,86446.0,0.01156791]
[1765994095194,0.03475788,86477.0,86445.0,0.01844157]
[1765994095315,0.03684157,86476.0,86461.0,0.0115659]
[1765994095516,0.0184,86475.0,86459.0,0.24288726]
[1765994095710,0.0184,86475.0,86457.0,0.23132795]
[1765994095965,0.01156416,86474.0,86456.0,0.75965657]
[1765994096168,1.0,86474.0,86460.0,0.24288662]
[1765994096332,1.0115643,86473.0,86455.0,0.01156671]
[1765994096529,0.003,86471.0,86455.0,0.01156671]
[1765994096733,0.01156416,86474.0,86455.0,0.24289975]
[1765994096932,1.0,86465.0,86450.0,0.01156737]
[1765994097153,0.61941,86463.0,86451.0,0.01156724]
[1765994097371,0.61941,86463.0,86452.0,0.24290908]
[1765994097574,0.61941,86463.0,86453.0,0.01156697]
[1765994097796,0.61941,86463.0,86454.0,0.24290121]
[1765994097998,0.61941,86463.0,86452.0,0.23134028]
[1765994097999,0.61941,86463.0,86453.0,0.24290645]
[1765994098176,0.61941,86463.0,86454.0,0.01156684]
[1765994098352,0.01844157,86462.0,86444.0,0.01176818]
[1765994098557,0.61941,86461.0,86446.0,0.23135689]
[1765994098782,0.62102287,86461.0,86446.0,0.2429248]
[1765994099020,0.62102287,86461.0,86445.0,0.01156804]
[1765994099170,0.61941,86459.0,86444.0,0.0002]
[1765994099391,0.2428953,86457.0,86444.0,0.0002]
[1765994099590,0.2428953,86457.0,86437.0,0.75965911]
[1765994099591,0.01317931,86457.0,86437.0,0.75965911]
[1765994099787,0.61921,86456.0,86440.0,0.01156871]
[1765994100126,0.62082287,86456.0,86442.0,0.23136871]
[1765994100329,0.001,86461.0,86455.0,0.01156671]
[1765994100467,0.05781324,86491.0,86455.0,0.01156671]
[1765994100468,0.2312579,86484.0,86465.0,0.01156537]
[1765994100669,0.2312579,86484.0,86460.0,0.50449]
[1765994100670,0.01844157,86476.0,86466.0,0.01156523]
[1765994100865,0.001,86456.0,86455.0,2.87e-06]
[1765994101065,0.001,86456.0,86450.0,0.01156737]
[1765994101067,0.001,86456.0,86442.0,0.50449]
[1765994101068,0.01156778,86447.0,86429.0,0.01156697]
[1765994101305,0.0194,86456.0,86390.0,0.00119999]
[1765994101306,0.01156858,86441.0,86423.0,0.23141987]
[1765994101514,0.71416,86440.0,86430.0,0.01157005]
[1765994101708,0.0184,86440.0,86426.0,0.74809]
[1765994102026,0.69576,86439.0,86425.0,0.01157072]
[1765994102288,0.69576,86436.0,86407.0,0.50449]
[1765994102513,0.69576,86432.0,86420.0,0.01157139]
[1765994102711,1.0,86431.0,86423.0,0.01157099]
[1765994102845,0.69576,86430.0,86425.0,0.01157072]
[1765994103047,0.01156778,86447.0,86425.0,0.01157072]
[1765994103048,0.01844157,86451.0,86434.0,0.01156952]
[1765994103256,0.01844157,86451.0,86433.0,0.24296102]
[1765994103257,0.0907,86447.0,86428.0,0.01157032]
[1765994103441,0.01844157,86451.0,86428.0,0.01157032]
[1765994103442,0.0907,86443.0,86432.0,0.01156978]
[1765994103639,1.0,86442.0,86432.0,0.00161287]
[1765994103894,0.0184,86441.0,86435.0,0.01156938]
[1765994104099,0.23130141,86468.0,86445.0,0.01156804]
[1765994104299,1.0,86465.0,86445.0,0.50610287]
[1765994104501,0.0347603,86469.0,86463.0,0.01156564]
[1765994104810,0.01156323,86481.0,86463.0,0.01156564]
[1765994104811,0.01156283,86484.0,86463.0,0.00161287]
[1765994105003,1.01156229,86488.0,86463.0,0.00161287]
[1765994105149,0.03475236,86493.0,86471.0,0.01156457]
[1765994105150,1.0,86481.0,86471.0,0.01156457]
[1765994105346,0.995,86479.0,86475.0,0.01156403]
[1765994105636,0.6923,86487.0,86478.0,0.01156363]
[1765994105837,0.6923,86502.0,86483.0,0.01156296]
[1765994106037,1.0,86499.0,86484.0,0.01156283]
[1765994106249,0.002,86488.0,86486.0,0.2428122]
[1765994106475,1.01156015,86504.0,86487.0,0.01156243]
[1765994106674,1.0,86501.0,86485.0,0.01156269]
[1765994106877,1.0,86501.0,86478.0,0.01156363]
[1765994106878,1.0,86493.0,86478.0,0.01156363]
[1765994107008,1.0,86491.0,86478.0,0.01156363]
[1765994107209,1.0,86491.0,86468.0,0.50449]
[1765994107210,0.71052,86486.0,86470.0,0.0115647]
[1765994107418,0.71052,86485.0,86471.0,0.01156457]
[1765994107620,0.01156336,86480.0,86460.0,0.01156604]
[1765994107821,0.72892,86479.0,86462.0,0.01343341]
[1765994108046,0.72892,86479.0,86469.0,0.01156483]
[1765994108387,1.71052,86478.0,86464.0,0.0115655]
[1765994108542,0.0184,86479.0,86445.0,0.74809]
[1765994108543,0.71052,86474.0,86452.0,0.01156711]
[1765994108747,0.01844157,86475.0,86450.0,0.01156737]
[1765994108748,1.0,86469.0,86457.0,0.01156644]
[1765994108929,1.0,86467.0,86457.0,0.01156644]
[1765994109133,1.0,86467.0,86456.0,0.01156657]
[1765994109326,0.01156537,86465.0,86447.0,0.01156778]
[1765994109528,0.01156537,86465.0,86441.0,0.50043157]
[1765994109529,0.70867,86470.0,86449.0,0.01156751]
[1765994109530,0.0184,86464.0,86449.0,0.01156751]
[1765994109752,0.0184,86464.0,86451.0,0.01156724]
[1765994109975,0.0184,86464.0,86449.0,0.01156751]
[1765994110203,0.70867,86462.0,86444.0,0.231363]
[1765994110419,1.0,86459.0,86439.0,0.01156885]
[1765994110568,1.0,86456.0,86440.0,0.01156871]
[1765994110746,1.0,86456.0,86436.0,0.01156925]
[1765994110747,0.69074,86448.0,86436.0,0.01156925]
[1765994110949,0.71231205,86450.0,86435.0,0.23138583]
[1765994110950,1.0,86446.0,86435.0,0.23138583]
[1765994111171,1.0,86446.0,86435.0,0.01156938]
[1765994111375,1.0,86446.0,86439.0,0.01156885]
[1765994111575,0.0115663,86458.0,86440.0,0.01156871]
[1765994111777,0.32202462,86459.0,86436.0,0.01156925]
[1765994111778,0.0907,86454.0,86436.0,0.01156925]
[1765994112009,0.0907,86452.0,86440.0,0.01156871]
[1765994112160,1.0,86452.0,86440.0,0.01156871]
[1765994112672,1.0,86452.0,86441.0,0.01156858]
[1765994112879,1.0,86452.0,86400.0,0.03024553]
[1765994113100,1.0,86450.0,86433.0,0.01156965]
[1765994113300,1.0,86450.0,86435.0,0.01156938]
[1765994113301,0.80085631,86449.0,86435.0,0.01156938]
[1765994113477,1.0,86448.0,86438.0,0.01156898]
[1765994113704,1.0,86447.0,86434.0,0.01156952]
[1765994113886,1.0,86446.0,86434.0,0.01156952]
[1765994114325,1.0,86445.0,86434.0,0.01156952]
[1765994114526,1.0,86445.0,86436.0,0.01156925]
[1765994114723,1.0,86445.0,86434.0,0.01156952]
[1765994114952,1.0,86444.0,86434.0,0.01156952]
[1765994115113,0.0184,86443.0,86435.0,0.01156938]
[1765994115325,0.00161287,86445.0,86437.0,0.01156911]
[1765994115529,0.0184,86442.0,86437.0,0.01156911]
[1765994115738,0.0184,86442.0,86436.0,0.01156925]
[1765994115943,0.00161287,86445.0,86433.0,0.24296159]
[1765994116292,0.0184,86444.0,86427.0,0.23140824]
[1765994116497,0.0184,86443.0,86438.0,0.01156898]
[1765994116720,0.0184,86443.0,86439.0,0.01156885]
[1765994116920,0.0184,86443.0,86436.0,0.01156925]
[1765994117156,0.0184,86442.0,86437.0,0.01156911]
[1765994117284,0.0184,86442.0,86438.0,0.01156898]
[1765994117486,0.0184,86442.0,86437.0,0.01156911]
[1765994117918,0.0184,86442.0,86436.0,0.01156925]
[1765994118274,0.0184,86442.0,86434.0,0.01156952]
[1765994118474,0.0184,86442.0,86429.0,0.24297132]
[1765994118676,0.0184,86442.0,86437.0,0.01156911]
[1765994118920,0.0034,86441.0,86439.0,0.01156885]
[1765994119121,0.59644,86452.0,86439.0,0.01156885]
[1765994119122,0.59325287,86452.0,86441.0,0.01156858]
[1765994119282,0.0115663,86458.0,86442.0,0.01388214]
[1765994119283,0.0184,86451.0,86442.0,0.01388214]
[1765994119484,1.0,86456.0,86445.0,0.23136098]
[1765994119842,0.9699,86454.0,86442.0,2.87e-06]
[1765994120095,0.9699,86454.0,86447.0,0.01156778]
[1765994120304,0.01844157,86459.0,86434.0,1.22373]
[1765994120305,0.01844157,86459.0,86451.0,0.01156724]
[1765994120492,0.01844157,86459.0,86449.0,0.01156751]
[1765994120654,0.0184,86458.0,86449.0,0.01156751]
[1765994120851,0.0117,86457.0,86445.0,0.2429267]
[1765994121062,1.0,86455.0,86444.0,0.01156818]
[1765994121310,0.0184,86454.0,86445.0,0.01156804]
[1765994121544,0.0184,86454.0,86438.0,0.01156898]
[1765994121751,0.0184,86454.0,86445.0,0.01156804]
[1765994121919,0.0184,86454.0,86447.0,0.01156778]
[1765994122113,1.0,86457.0,86445.0,0.24292852]
[1765994122314,0.01344157,86458.0,86445.0,0.24292852]
[1765994122315,0.0033,86453.0,86445.0,0.24292852]
[1765994122482,0.0033,86453.0,86440.0,0.01156871]
[1765994122680,1.0,86449.0,86431.0,0.01156992]
[1765994122882,1.0,86452.0,86417.0,0.0907]
[1765994123125,0.00161287,86453.0,86444.0,0.01156818]
[1765994123343,0.0084,86451.0,86446.0,0.01156791]
[1765994123574,0.0117,86450.0,86446.0,0.01156791]
[1765994123775,1.0,86457.0,86444.0,0.01156818]
[1765994123983,1.0,86455.0,86445.0,0.01156804]
[1765994124134,1.0,86457.0,86447.0,0.24292106]
[1765994124335,0.0184,86456.0,86449.0,0.24291778]
[1765994124519,0.0907,86463.0,86448.0,0.01156764]